[Event "Nové Hrady - Blesk"]
[Site "Nové Hrady, Czech Republic"]
[Date "2023.08.17"]
[Round "7.2"]
[White "Zeman, Matyas"]
[Black "Hak, David"]
[Result "1-0"]
[TimeControl "2x3+2s"]
[WhiteFideId "364398"]
[BlackFideId "377007"]
[WhiteElo "2254"]
[BlackElo "2037"]

1. Nf3 {[%clk 00:03:03]} {[%emt 00:00:02]} c5 {[%clk 00:03:03]} 2. g3 {[%clk
00:03:02]} {[%emt 00:00:03]} g6 {[%clk 00:03:04]} 3. Bg2 {[%clk 00:03:03]} Bg7
{[%clk 00:03:05]} 4. O-O {[%clk 00:03:04]} d6 {[%clk 00:03:01]} {[%emt
00:00:10]} 5. c3 {[%clk 00:03:00]} {[%emt 00:00:06]} Nf6 {[%clk 00:02:44]}
{[%emt 00:00:19]} 6. d4 {[%clk 00:03:00]} Nbd7 {[%clk 00:02:29]} {[%emt
00:00:18]} 7. Re1 {[%clk 00:02:47]} {[%emt 00:00:15]} O-O {[%clk 00:02:26]}
{[%emt 00:00:05]} 8. e4 {[%clk 00:02:43]} {[%emt 00:00:06]} e5 {[%clk
00:02:09]} {[%emt 00:00:19]} 9. dxe5 {[%clk 00:02:43]} {[%emt 00:00:02]} Nxe5
{[%clk 00:01:50]} {[%emt 00:00:21]} 10. Nxe5 {[%clk 00:02:41]} {[%emt
00:00:04]} dxe5 {[%clk 00:01:51]} 11. Qxd8 {[%clk 00:02:42]} Rxd8 {[%clk
00:01:52]} {[%emt 00:00:03]} 12. Na3 {[%clk 00:02:32]} {[%emt 00:00:12]} Be6
{[%clk 00:01:47]} {[%emt 00:00:07]} 13. Be3 {[%clk 00:02:33]} {[%emt 00:00:01]}
b6 {[%clk 00:01:37]} {[%emt 00:00:12]} 14. f3 {[%clk 00:02:34]} Rd7 {[%clk
00:01:24]} {[%emt 00:00:16]} 15. Bf1 {[%clk 00:02:34]} Rad8 {[%clk 00:01:16]}
{[%emt 00:00:12]} 16. Bc4 {[%clk 00:02:35]} {[%emt 00:00:02]} Bxc4 {[%clk
00:01:05]} {[%emt 00:00:12]} 17. Nxc4 {[%clk 00:02:36]} Ne8 {[%clk 00:01:06]}
18. Kf2 {[%clk 00:02:16]} {[%emt 00:00:23]} Nd6 {[%clk 00:00:49]} {[%emt
00:00:18]} 19. Nxd6 {[%clk 00:02:13]} {[%emt 00:00:06]} Rxd6 {[%clk 00:00:50]}
20. Ke2 {[%clk 00:02:15]} f5 {[%clk 00:00:33]} {[%emt 00:00:19]} 21. Bg5 {[%clk
00:01:58]} {[%emt 00:00:20]} R8d7 {[%clk 00:00:33]} {[%emt 00:00:01]} 22. Red1
{[%clk 00:01:53]} {[%emt 00:00:06]} Kf7 {[%clk 00:00:31]} {[%emt 00:00:05]} 23.
Rxd6 {[%clk 00:01:53]} {[%emt 00:00:02]} Rxd6 {[%clk 00:00:33]} 24. Be3 {[%clk
00:01:40]} {[%emt 00:00:15]} Ke6 {[%clk 00:00:28]} {[%emt 00:00:07]} 25. a4
{[%clk 00:01:41]} a5 {[%clk 00:00:27]} {[%emt 00:00:04]} 26. Rb1 {[%clk
00:01:39]} {[%emt 00:00:03]} Bf8 {[%clk 00:00:23]} {[%emt 00:00:05]} 27. b4
{[%clk 00:01:38]} {[%emt 00:00:03]} cxb4 {[%clk 00:00:21]} {[%emt 00:00:04]} 28.
cxb4 {[%clk 00:01:39]} Rc6 {[%clk 00:00:18]} {[%emt 00:00:06]} 29. b5 {[%clk
00:01:32]} {[%emt 00:00:10]} Rc2+ {[%clk 00:00:19]} {[%emt 00:00:02]} 30. Kd3
{[%clk 00:01:33]} Ra2 {[%clk 00:00:12]} {[%emt 00:00:09]} 31. Bxb6 {[%clk
00:01:33]} {[%emt 00:00:02]} Rxa4 {[%clk 00:00:13]} 32. Bg1 {[%clk 00:01:02]}
{[%emt 00:00:32]} Ra3+ {[%clk 00:00:14]} 33. Kc4 {[%clk 00:00:40]} {[%emt
00:00:26]} Ra4+ {[%clk 00:00:14]} {[%emt 00:00:02]} 34. Kc3 {[%clk 00:00:38]}
{[%emt 00:00:03]} Ra3+ {[%clk 00:00:15]} {[%emt 00:00:02]} 35. Rb3 {[%clk
00:00:39]} Bb4+ {[%clk 00:00:14]} {[%emt 00:00:03]} 36. Kb2 {[%clk 00:00:36]}
{[%emt 00:00:06]} Rxb3+ {[%clk 00:00:12]} {[%emt 00:00:03]} 37. Kxb3 {[%clk
00:00:38]} Kd6 {[%clk 00:00:10]} {[%emt 00:00:05]} 38. Bb6 {[%clk 00:00:39]}
Be1 {[%clk 00:00:06]} {[%emt 00:00:07]} 39. Ka4 {[%clk 00:00:34]} {[%emt
00:00:07]} h5 {[%clk 00:00:05]} {[%emt 00:00:03]} 40. Bxa5 {[%emt 00:00:02]}
Bf2 41. Bb4+ {[%clk 00:00:31]} {[%emt 00:00:05]} Kc7 {[%clk 00:00:07]} 42. Be7
{[%clk 00:00:32]} {[%emt 00:00:02]} Bg1 {[%clk 00:00:07]} 43. h3 {[%clk
00:00:32]} {[%emt 00:00:02]} Bf2 {[%clk 00:00:06]} {[%emt 00:00:04]} 44. g4
{[%clk 00:00:34]} fxe4 {[%emt 00:00:02]} 45. fxe4 hxg4 46. hxg4 {[%emt
00:00:01]} Bd4 {[%clk 00:00:08]} 47. Kb4 {[%clk 00:00:34]} {[%emt 00:00:04]}
Kb6 {[%clk 00:00:09]} 48. Kc4 {[%clk 00:00:35]} Be3 {[%clk 00:00:08]} {[%emt
00:00:04]} 49. Bd8+ {[%clk 00:00:36]} Kb7 {[%clk 00:00:10]} 50. Kd5 {[%clk
00:00:38]} Bd4 {[%clk 00:00:10]} {[%emt 00:00:05]} 51. Bf6 {[%clk 00:00:39]}
Kb6 {[%clk 00:00:11]} 52. Bxe5 {[%clk 00:00:38]} {[%emt 00:00:02]} Be3 {[%clk
00:00:10]} {[%emt 00:00:03]} 53. Kc4 {[%clk 00:00:39]} 1-0

[Event "Nové Hrady - Blesk"]
[Site "Nové Hrady, Czech Republic"]
[Date "2023.08.17"]
[Round "7.3"]
[White "Steinbauer, Sebastian"]
[Black "Šimůnek, Jakub Šimon"]
[Result "1-0"]
[TimeControl "2x3+2s"]
[WhiteFideId "399272"]
[BlackFideId "23709464"]
[WhiteElo "1660"]
[BlackElo "1921"]

1. e4 {[%clk 00:03:03]} {[%emt 00:00:02]} e6 {[%clk 00:03:03]} 2. d4 {[%clk
00:03:04]} d5 {[%clk 00:03:05]} 3. exd5 {[%clk 00:03:05]} exd5 {[%clk
00:03:06]} 4. Bd3 {[%clk 00:03:06]} c5 {[%clk 00:03:07]} 5. c3 {[%clk
00:03:07]} c4 6. Bc2 {[%emt 00:00:08]} Nf6 {[%clk 00:03:10]} {[%emt 00:00:01]}
7. Nf3 {[%clk 00:03:09]} Bd6 {[%clk 00:03:10]} {[%emt 00:00:03]} 8. Bg5 {[%clk
00:03:09]} Qe7+ {[%clk 00:02:51]} {[%emt 00:00:21]} 9. Qe2 {[%clk 00:03:05]}
{[%emt 00:00:06]} Qxe2+ {[%clk 00:02:52]} {[%emt 00:00:01]} 10. Kxe2 {[%clk
00:03:06]} O-O {[%clk 00:02:49]} {[%emt 00:00:06]} 11. Re1 {[%clk 00:03:07]}
Bg4 {[%clk 00:02:47]} {[%emt 00:00:06]} 12. Nbd2 {[%clk 00:03:08]} Nbd7 {[%clk
00:02:48]} {[%emt 00:00:02]} 13. Kf1 {[%clk 00:03:08]} {[%emt 00:00:01]} Rae8
{[%clk 00:02:47]} {[%emt 00:00:04]} 14. h3 {[%clk 00:03:09]} Bh5 {[%clk
00:02:46]} {[%emt 00:00:03]} 15. Re2 {[%clk 00:02:56]} {[%emt 00:00:14]} Rxe2
{[%clk 00:02:34]} {[%emt 00:00:14]} 16. Kxe2 Re8+ 17. Kf1 {[%clk 00:02:58]}
{[%emt 00:00:02]} Bg6 {[%clk 00:02:37]} {[%emt 00:00:01]} 18. Bxg6 {[%clk
00:02:57]} {[%emt 00:00:03]} hxg6 {[%clk 00:02:36]} {[%emt 00:00:02]} 19. Re1
{[%clk 00:02:55]} {[%emt 00:00:04]} Kf8 {[%clk 00:02:19]} {[%emt 00:00:20]} 20.
Rxe8+ {[%clk 00:02:47]} {[%emt 00:00:09]} Kxe8 {[%clk 00:02:20]} 21. Ne1 {[%clk
00:02:30]} {[%emt 00:00:21]} Nf8 {[%clk 00:01:51]} {[%emt 00:00:31]} 22. Nc2
{[%clk 00:02:20]} {[%emt 00:00:12]} Kd7 {[%clk 00:01:39]} {[%emt 00:00:13]} 23.
Ne3 {[%clk 00:02:19]} {[%emt 00:00:04]} Kc6 {[%clk 00:01:39]} {[%emt 00:00:02]}
24. b3 {[%clk 00:02:10]} {[%emt 00:00:11]} b5 {[%clk 00:01:39]} {[%emt
00:00:02]} 25. bxc4 {[%clk 00:02:04]} {[%emt 00:00:08]} bxc4 {[%clk 00:01:39]}
{[%emt 00:00:01]} 26. Bh4 {[%clk 00:01:50]} {[%emt 00:00:15]} Ne6 {[%clk
00:01:19]} {[%emt 00:00:23]} 27. Bxf6 {[%clk 00:01:37]} {[%emt 00:00:14]} gxf6
{[%clk 00:01:19]} {[%emt 00:00:04]} 28. g3 {[%clk 00:01:30]} {[%emt 00:00:09]}
Ba3 {[%clk 00:01:09]} {[%emt 00:00:11]} 29. Nd1 {[%clk 00:01:29]} {[%emt
00:00:04]} Bc1 {[%clk 00:00:39]} {[%emt 00:00:32]} 30. Ke2 {[%clk 00:01:28]}
{[%emt 00:00:02]} Ng5 {[%clk 00:00:36]} {[%emt 00:00:06]} 31. h4 {[%clk
00:00:32]} {[%emt 00:00:57]} Bxd2 {[%clk 00:00:34]} {[%emt 00:00:04]} 32. Kxd2
{[%clk 00:00:34]} Ne4+ {[%clk 00:00:35]} {[%emt 00:00:03]} 33. Ke3 {[%clk
00:00:35]} Kb5 {[%clk 00:00:32]} {[%emt 00:00:05]} 34. Kf4 {[%clk 00:00:36]}
Ka4 {[%clk 00:00:31]} {[%emt 00:00:04]} 35. f3 {[%clk 00:00:37]} Nd6 {[%clk
00:00:09]} {[%emt 00:00:25]} 36. g4 {[%clk 00:00:38]} Ka3 {[%clk 00:00:10]} 37.
h5 {[%clk 00:00:40]} g5+ {[%clk 00:00:07]} {[%emt 00:00:07]} 38. Kg3 {[%clk
00:00:39]} {[%emt 00:00:03]} Nc8 {[%clk 00:00:08]} 39. h6 {[%emt 00:00:02]} Ne7
{[%emt 00:00:01]} 40. Ne3 {[%clk 00:00:38]} {[%emt 00:00:02]} Kxa2 {[%emt
00:00:05]} 41. h7 Ng6 {[%clk 00:00:09]} 42. Nxd5 {[%clk 00:00:40]} Kb3 {[%clk
00:00:09]} {[%emt 00:00:04]} 43. Ne7 {[%clk 00:00:39]} {[%emt 00:00:03]} Nh8
{[%clk 00:00:09]} {[%emt 00:00:01]} 44. d5 {[%clk 00:00:37]} {[%emt 00:00:04]}
1-0

[Event "Nové Hrady - Blesk"]
[Site "Nové Hrady, Czech Republic"]
[Date "2023.08.17"]
[Round "7.4"]
[White "Vybiral, Zdenek"]
[Black "Prinz, Hubert"]
[Result "1-0"]
[TimeControl "2x3+2s"]
[WhiteFideId "305200"]
[BlackFideId "1639447"]
[WhiteElo "2158"]
[BlackElo "1884"]

1. d4 {[%clk 00:03:03]} Nf6 {[%clk 00:03:04]} 2. c4 {[%clk 00:03:03]} {[%emt
00:00:02]} d5 {[%clk 00:03:05]} 3. cxd5 {[%clk 00:03:03]} {[%emt 00:00:03]}
Nxd5 {[%clk 00:03:06]} 4. Nf3 {[%clk 00:03:04]} {[%emt 00:00:03]} g6 {[%clk
00:03:07]} 5. e4 {[%clk 00:03:04]} {[%emt 00:00:02]} Nf6 {[%clk 00:03:06]}
{[%emt 00:00:03]} 6. Nc3 {[%clk 00:03:05]} Bg7 {[%clk 00:03:05]} {[%emt
00:00:05]} 7. Be2 {[%clk 00:03:01]} {[%emt 00:00:05]} O-O {[%clk 00:03:04]}
{[%emt 00:00:03]} 8. O-O {[%clk 00:02:55]} {[%emt 00:00:08]} c6 {[%clk
00:03:04]} {[%emt 00:00:02]} 9. h3 {[%clk 00:02:52]} {[%emt 00:00:05]} b6
{[%clk 00:02:50]} {[%emt 00:00:16]} 10. Be3 {[%clk 00:02:49]} {[%emt 00:00:05]}
Bb7 {[%clk 00:02:52]} 11. Qb3 {[%clk 00:02:41]} {[%emt 00:00:10]} e6 {[%clk
00:02:48]} {[%emt 00:00:06]} 12. Rad1 {[%clk 00:02:13]} {[%emt 00:00:31]} Nbd7
{[%clk 00:02:36]} {[%emt 00:00:13]} 13. Rfe1 {[%clk 00:02:03]} {[%emt
00:00:12]} Qc7 {[%clk 00:02:11]} {[%emt 00:00:28]} 14. Rc1 {[%clk 00:02:02]}
{[%emt 00:00:03]} Qd8 {[%clk 00:02:07]} {[%emt 00:00:06]} 15. Red1 {[%clk
00:02:00]} {[%emt 00:00:04]} Qe7 {[%clk 00:01:59]} {[%emt 00:00:09]} 16. Bg5
{[%clk 00:02:00]} {[%emt 00:00:02]} h6 {[%clk 00:01:59]} {[%emt 00:00:03]} 17.
Bh4 {[%clk 00:02:01]} g5 {[%clk 00:02:00]} 18. Bg3 {[%clk 00:02:02]} Rfc8
{[%clk 00:01:49]} {[%emt 00:00:15]} 19. Re1 {[%clk 00:01:55]} {[%emt 00:00:10]}
Qd8 {[%clk 00:01:20]} {[%emt 00:00:31]} 20. Rcd1 {[%clk 00:01:55]} Qf8 {[%clk
00:01:21]} 21. e5 {[%clk 00:01:30]} {[%emt 00:00:29]} Nd5 {[%clk 00:01:22]} 22.
Ne4 {[%clk 00:01:31]} Qe7 {[%clk 00:01:12]} {[%emt 00:00:14]} 23. Rc1 {[%clk
00:01:16]} {[%emt 00:00:17]} c5 {[%clk 00:01:09]} {[%emt 00:00:05]} 24. Nd6
{[%clk 00:00:58]} {[%emt 00:00:20]} Rcb8 {[%clk 00:01:00]} {[%emt 00:00:12]} 25.
Bb5 {[%clk 00:00:56]} {[%emt 00:00:04]} cxd4 {[%clk 00:00:55]} {[%emt
00:00:06]} 26. Nxb7 {[%clk 00:00:55]} {[%emt 00:00:03]} Rxb7 {[%clk 00:00:56]}
27. Bc6 {[%clk 00:00:56]} {[%emt 00:00:01]} Nc5 {[%clk 00:00:57]} {[%emt
00:00:02]} 28. Rxc5 {[%clk 00:00:46]} {[%emt 00:00:11]} bxc5 {[%clk 00:00:58]}
29. Qxb7 {[%clk 00:00:46]} {[%emt 00:00:03]} Qxb7 30. Bxb7 {[%clk 00:00:46]}
Rb8 {[%clk 00:00:59]} 31. Bxd5 {[%clk 00:00:42]} {[%emt 00:00:06]} exd5 {[%clk
00:00:59]} {[%emt 00:00:02]} 32. e6 {[%clk 00:00:42]} {[%emt 00:00:02]} fxe6
{[%clk 00:01:00]} {[%emt 00:00:01]} 33. Bxb8 {[%emt 00:00:03]} 1-0

[Event "Nové Hrady - Blesk"]
[Site "Nové Hrady, Czech Republic"]
[Date "2023.08.17"]
[Round "7.5"]
[White "Slabý, Matěj"]
[Black "Blazek, Jiri"]
[Result "0-1"]
[TimeControl "2x3+2s"]
[WhiteFideId "23734876"]
[BlackFideId "330515"]
[WhiteElo "1894"]
[BlackElo "2061"]

1. e4 {[%clk 00:03:02]} {[%emt 00:00:02]} e6 {[%clk 00:03:03]} 2. d4 {[%clk
00:03:03]} {[%emt 00:00:02]} d5 {[%clk 00:03:04]} {[%emt 00:00:01]} 3. e5
{[%clk 00:03:04]} c5 {[%clk 00:03:06]} 4. c3 {[%clk 00:03:05]} Nc6 {[%clk
00:03:06]} {[%emt 00:00:04]} 5. Nf3 {[%clk 00:03:06]} Bd7 {[%clk 00:03:02]}
{[%emt 00:00:07]} 6. a3 {[%clk 00:02:57]} {[%emt 00:00:11]} f6 {[%clk
00:03:02]} {[%emt 00:00:02]} 7. exf6 {[%clk 00:02:57]} {[%emt 00:00:02]} Nxf6
{[%clk 00:03:03]} 8. b4 {[%clk 00:02:43]} {[%emt 00:00:17]} cxb4 {[%clk
00:02:59]} {[%emt 00:00:06]} 9. axb4 {[%clk 00:02:42]} {[%emt 00:00:03]} Bd6
{[%clk 00:02:50]} {[%emt 00:00:11]} 10. Bg5 {[%clk 00:02:39]} {[%emt 00:00:06]}
O-O {[%clk 00:02:49]} {[%emt 00:00:02]} 11. Bd3 {[%clk 00:02:40]} h6 {[%clk
00:02:49]} {[%emt 00:00:02]} 12. Bh4 {[%clk 00:02:39]} {[%emt 00:00:03]} e5
{[%clk 00:02:29]} {[%emt 00:00:22]} 13. b5 {[%clk 00:02:37]} {[%emt 00:00:04]}
Nxd4 {[%clk 00:02:23]} {[%emt 00:00:08]} 14. cxd4 {[%clk 00:02:27]} {[%emt
00:00:13]} e4 {[%clk 00:02:23]} 15. O-O {[%clk 00:02:23]} {[%emt 00:00:06]} Bg4
{[%clk 00:02:18]} {[%emt 00:00:06]} 16. Be2 {[%clk 00:02:16]} {[%emt 00:00:10]}
exf3 {[%clk 00:02:08]} {[%emt 00:00:11]} 17. Bxf3 {[%clk 00:02:17]} {[%emt
00:00:03]} Bxf3 {[%clk 00:01:45]} {[%emt 00:00:24]} 18. Qxf3 {[%clk 00:02:18]}
Qd7 {[%clk 00:01:41]} {[%emt 00:00:07]} 19. Bxf6 {[%clk 00:02:15]} {[%emt
00:00:06]} Rxf6 {[%clk 00:01:36]} {[%emt 00:00:07]} 20. Qxd5+ {[%clk 00:02:15]}
Kh8 {[%clk 00:01:37]} 21. g3 {[%clk 00:02:16]} Raf8 {[%clk 00:01:28]} {[%emt
00:00:13]} 22. Nd2 {[%clk 00:02:13]} {[%emt 00:00:06]} Rxf2 {[%clk 00:01:07]}
{[%emt 00:00:23]} 23. Rxf2 {[%clk 00:01:57]} {[%emt 00:00:18]} Rxf2 24. Ne4
{[%emt 00:00:03]} Rf8 {[%clk 00:00:40]} {[%emt 00:00:29]} 25. Nxd6 {[%clk
00:01:49]} {[%emt 00:00:11]} Rf6 {[%clk 00:00:37]} {[%emt 00:00:06]} 26. Nf7+
{[%clk 00:01:37]} {[%emt 00:00:13]} Rxf7 {[%clk 00:00:37]} 27. Qxd7 {[%clk
00:01:38]} Rxd7 {[%clk 00:00:38]} 28. Rxa7 {[%clk 00:01:39]} Kg8 {[%clk
00:00:33]} {[%emt 00:00:11]} 29. Kf2 {[%emt 00:00:01]} Kf7 30. Ke3 {[%clk
00:01:41]} Ke6 {[%clk 00:00:36]} 31. Ke4 {[%clk 00:01:40]} {[%emt 00:00:04]}
Kd6 {[%clk 00:00:37]} 32. g4 {[%emt 00:00:19]} Re7+ 33. Kd3 {[%clk 00:01:24]}
{[%emt 00:00:01]} Kc7 {[%clk 00:00:40]} 34. Ra4 {[%clk 00:01:19]} {[%emt
00:00:08]} Rf7 {[%clk 00:00:35]} {[%emt 00:00:06]} 35. Kc4 {[%clk 00:01:10]}
{[%emt 00:00:12]} Rf4 {[%clk 00:00:34]} {[%emt 00:00:03]} 36. h3 {[%clk
00:01:09]} {[%emt 00:00:02]} Rf3 {[%clk 00:00:35]} 37. Ra8 {[%clk 00:01:00]}
{[%emt 00:00:12]} Rxh3 {[%clk 00:00:33]} {[%emt 00:00:04]} 38. Rg8 {[%clk
00:01:01]} {[%emt 00:00:02]} g5 {[%clk 00:00:34]} 39. Kd5 {[%clk 00:01:02]}
{[%emt 00:00:02]} Rb3 {[%clk 00:00:32]} {[%emt 00:00:04]} 40. Kc4 {[%clk
00:01:02]} {[%emt 00:00:02]} Rb1 {[%clk 00:00:32]} 41. Rg6 {[%clk 00:01:03]}
{[%emt 00:00:02]} Rc1+ {[%clk 00:00:31]} {[%emt 00:00:03]} 0-1

[Event "Nové Hrady - Blesk"]
[Site "Nové Hrady, Czech Republic"]
[Date "2023.08.17"]
[Round "7.6"]
[White "Hokr, Matyas"]
[Black "Babula, Milan"]
[Result "0-1"]
[TimeControl "2x3+2s"]
[WhiteFideId "23734663"]
[BlackFideId "300632"]
[WhiteElo "1472"]
[BlackElo "2176"]

1. e4 {[%clk 00:03:02]} {[%emt 00:00:02]} Nc6 {[%clk 00:03:03]} {[%emt
00:00:02]} 2. d4 {[%clk 00:03:03]} {[%emt 00:00:01]} d5 {[%clk 00:03:04]} 3. e5
{[%clk 00:03:04]} Bf5 {[%clk 00:03:05]} 4. c3 {[%clk 00:03:03]} {[%emt
00:00:05]} e6 {[%clk 00:03:05]} 5. Bd3 {[%clk 00:03:04]} {[%emt 00:00:02]} Nge7
{[%clk 00:03:01]} {[%emt 00:00:05]} 6. Bg5 {[%clk 00:03:04]} {[%emt 00:00:03]}
Qd7 {[%clk 00:02:59]} {[%emt 00:00:04]} 7. Bxe7 {[%clk 00:03:00]} {[%emt
00:00:05]} Nxe7 {[%clk 00:03:00]} 8. Nf3 {[%clk 00:02:53]} {[%emt 00:00:10]}
O-O-O {[%clk 00:02:49]} {[%emt 00:00:13]} 9. b4 {[%clk 00:02:43]} {[%emt
00:00:12]} f6 {[%clk 00:02:47]} {[%emt 00:00:04]} 10. a4 {[%clk 00:02:41]}
{[%emt 00:00:04]} Bxd3 {[%clk 00:02:44]} {[%emt 00:00:04]} 11. Qxd3 {[%clk
00:02:42]} {[%emt 00:00:02]} Ng6 {[%clk 00:02:44]} 12. Qd2 {[%clk 00:02:26]}
{[%emt 00:00:19]} Be7 {[%clk 00:02:41]} {[%emt 00:00:06]} 13. O-O {[%clk
00:02:18]} {[%emt 00:00:10]} fxe5 {[%clk 00:02:37]} {[%emt 00:00:06]} 14. Nxe5
{[%clk 00:02:16]} {[%emt 00:00:04]} Nxe5 {[%clk 00:02:38]} 15. dxe5 {[%clk
00:02:16]} d4 {[%clk 00:02:33]} {[%emt 00:00:10]} 16. Rd1 {[%clk 00:02:02]}
{[%emt 00:00:15]} dxc3 {[%clk 00:02:31]} {[%emt 00:00:04]} 17. Qxd7+ {[%clk
00:02:02]} {[%emt 00:00:03]} Rxd7 {[%clk 00:02:32]} 18. Rxd7 {[%clk 00:02:03]}
{[%emt 00:00:02]} Kxd7 {[%clk 00:02:33]} {[%emt 00:00:01]} 19. Nxc3 {[%clk
00:02:03]} {[%emt 00:00:01]} Bxb4 {[%clk 00:02:32]} {[%emt 00:00:03]} 20. Nb5
{[%clk 00:02:02]} {[%emt 00:00:04]} a6 {[%clk 00:02:22]} {[%emt 00:00:12]} 21.
Rd1+ {[%clk 00:02:02]} {[%emt 00:00:01]} Kc8 {[%clk 00:02:21]} {[%emt
00:00:03]} 22. Rb1 {[%clk 00:01:52]} {[%emt 00:00:13]} Rd8 {[%clk 00:02:05]}
{[%emt 00:00:18]} 23. Kf1 {[%clk 00:01:50]} {[%emt 00:00:03]} axb5 {[%clk
00:01:48]} {[%emt 00:00:19]} 24. Rxb4 {[%clk 00:01:49]} {[%emt 00:00:04]} bxa4
{[%clk 00:01:48]} 25. Rxa4 {[%clk 00:01:50]} Rd5 {[%clk 00:01:42]} {[%emt
00:00:10]} 26. f4 {[%clk 00:01:47]} {[%emt 00:00:04]} b5 {[%clk 00:01:42]}
{[%emt 00:00:03]} 27. Ra8+ {[%clk 00:01:44]} {[%emt 00:00:05]} Kb7 {[%clk
00:01:43]} 28. Rh8 {[%clk 00:01:44]} {[%emt 00:00:03]} b4 {[%clk 00:01:44]}
{[%emt 00:00:01]} 29. Rxh7 {[%clk 00:01:42]} {[%emt 00:00:03]} b3 {[%clk
00:01:38]} {[%emt 00:00:09]} 30. Rh3 {[%clk 00:01:42]} Rb5 {[%clk 00:01:39]} 31.
f5 {[%clk 00:01:34]} {[%emt 00:00:11]} b2 {[%clk 00:01:38]} {[%emt 00:00:03]}
0-1

[Event "Nové Hrady - Blesk"]
[Site "Nové Hrady, Czech Republic"]
[Date "2023.08.17"]
[Round "7.7"]
[White "Dudkova, Danka"]
[Black "Papacek, Stepan"]
[Result "0-1"]
[TimeControl "2x3+2s"]
[WhiteFideId "23718439"]
[BlackFideId "301035"]
[WhiteElo "1650"]
[BlackElo "2137"]

1. e4 {[%clk 00:03:02]} {[%emt 00:00:03]} e6 {[%clk 00:03:03]} 2. d4 {[%clk
00:03:03]} {[%emt 00:00:02]} d5 {[%clk 00:03:04]} 3. exd5 {[%clk 00:03:02]}
{[%emt 00:00:04]} exd5 {[%clk 00:03:05]} 4. c4 {[%clk 00:03:03]} Nf6 {[%clk
00:03:05]} {[%emt 00:00:04]} 5. Bg5 {[%clk 00:02:58]} {[%emt 00:00:06]} Bb4+
{[%clk 00:03:00]} {[%emt 00:00:07]} 6. Nc3 {[%clk 00:02:58]} {[%emt 00:00:02]}
O-O {[%clk 00:03:00]} {[%emt 00:00:02]} 7. cxd5 {[%clk 00:02:21]} {[%emt
00:00:40]} Re8+ {[%clk 00:02:45]} {[%emt 00:00:15]} 8. Be2 {[%clk 00:02:21]}
{[%emt 00:00:04]} Nbd7 {[%clk 00:02:06]} {[%emt 00:00:41]} 9. Nf3 {[%clk
00:02:15]} {[%emt 00:00:07]} Qe7 {[%clk 00:01:51]} {[%emt 00:00:17]} 10. Bxf6
{[%clk 00:01:45]} {[%emt 00:00:32]} Nxf6 {[%clk 00:01:52]} 11. Ne5 {[%clk
00:01:46]} Nxd5 {[%clk 00:01:44]} {[%emt 00:00:12]} 12. Qb3 {[%clk 00:01:46]}
{[%emt 00:00:02]} Be6 {[%clk 00:01:30]} {[%emt 00:00:17]} 13. Bc4 {[%clk
00:01:02]} {[%emt 00:00:46]} Bxc3+ {[%clk 00:00:27]} {[%emt 00:01:04]} 14. bxc3
{[%clk 00:01:03]} {[%emt 00:00:02]} c6 {[%clk 00:00:26]} {[%emt 00:00:03]} 15.
O-O {[%clk 00:01:03]} b5 {[%clk 00:00:27]} {[%emt 00:00:03]} 16. Bd3 {[%clk
00:01:02]} {[%emt 00:00:03]} f6 {[%clk 00:00:22]} {[%emt 00:00:07]} 17. Nxc6
{[%clk 00:01:00]} {[%emt 00:00:04]} Qd6 {[%clk 00:00:16]} {[%emt 00:00:08]} 18.
Qxb5 {[%clk 00:00:57]} {[%emt 00:00:06]} Nxc3 {[%clk 00:00:14]} {[%emt
00:00:03]} 19. Qc5 {[%clk 00:00:54]} {[%emt 00:00:05]} Qxc5 {[%clk 00:00:12]}
{[%emt 00:00:04]} 20. dxc5 {[%clk 00:00:55]} Rac8 {[%clk 00:00:12]} {[%emt
00:00:03]} 21. Rac1 {[%clk 00:00:54]} {[%emt 00:00:03]} Nxa2 {[%clk 00:00:11]}
{[%emt 00:00:03]} 22. Rc2 {[%clk 00:00:55]} Rxc6 {[%clk 00:00:10]} {[%emt
00:00:05]} 23. Ra1 {[%clk 00:00:53]} {[%emt 00:00:03]} Rec8 {[%clk 00:00:08]}
{[%emt 00:00:03]} 24. Bc4 {[%clk 00:00:47]} {[%emt 00:00:08]} Bxc4 {[%clk
00:00:08]} {[%emt 00:00:02]} 25. Rxc4 {[%clk 00:00:49]} Rxc5 {[%clk 00:00:09]}
26. Rxc5 {[%clk 00:00:42]} {[%emt 00:00:10]} Rxc5 {[%clk 00:00:11]} 27. h3
{[%clk 00:00:43]} {[%emt 00:00:02]} Rc1+ {[%clk 00:00:12]} 28. Rxc1 {[%clk
00:00:44]} Nxc1 {[%clk 00:00:13]} 0-1

[Event "Nové Hrady - Blesk"]
[Site "Nové Hrady, Czech Republic"]
[Date "2023.08.17"]
[Round "7.8"]
[White "Sadil, Antonin"]
[Black "Voršilka, Jiří"]
[Result "1-0"]
[TimeControl "2x3+2s"]
[WhiteFideId "23735597"]
[BlackFideId "365149"]
[WhiteElo "1697"]
[BlackElo "1463"]

1. e4 {[%clk 00:03:02]} {[%emt 00:00:03]} c5 {[%clk 00:03:02]} {[%emt
00:00:02]} 2. Nf3 {[%emt 00:00:01]} d6 3. c3 {[%clk 00:03:04]} Nf6 {[%clk
00:03:03]} {[%emt 00:00:02]} 4. Be2 {[%clk 00:03:05]} g6 {[%clk 00:03:03]}
{[%emt 00:00:04]} 5. e5 {[%clk 00:03:03]} {[%emt 00:00:04]} dxe5 {[%clk
00:03:01]} {[%emt 00:00:04]} 6. Nxe5 {[%clk 00:03:03]} Bg7 {[%clk 00:03:02]}
{[%emt 00:00:03]} 7. d4 {[%clk 00:03:03]} {[%emt 00:00:02]} cxd4 {[%clk
00:02:57]} {[%emt 00:00:06]} 8. cxd4 {[%clk 00:03:03]} O-O {[%clk 00:02:55]}
{[%emt 00:00:06]} 9. Nc3 {[%clk 00:03:03]} {[%emt 00:00:02]} Nd5 {[%clk
00:02:47]} {[%emt 00:00:10]} 10. Nxd5 {[%clk 00:02:51]} {[%emt 00:00:15]} Qxd5
{[%clk 00:02:47]} {[%emt 00:00:01]} 11. Bf3 {[%clk 00:02:51]} {[%emt 00:00:02]}
Qa5+ {[%clk 00:02:37]} {[%emt 00:00:12]} 12. Bd2 {[%clk 00:02:51]} {[%emt
00:00:01]} Qc7 {[%clk 00:02:38]} {[%emt 00:00:02]} 13. Bc3 {[%clk 00:02:49]}
{[%emt 00:00:04]} Nd7 {[%clk 00:02:29]} {[%emt 00:00:11]} 14. Nxd7 {[%clk
00:02:45]} {[%emt 00:00:05]} Bxd7 {[%clk 00:02:29]} {[%emt 00:00:03]} 15. O-O
{[%clk 00:02:43]} {[%emt 00:00:04]} Bc6 {[%clk 00:02:27]} {[%emt 00:00:04]} 16.
d5 {[%clk 00:02:39]} {[%emt 00:00:06]} Bb5 {[%clk 00:02:18]} {[%emt 00:00:12]}
17. Bxg7 {[%clk 00:02:30]} {[%emt 00:00:10]} Kxg7 {[%clk 00:02:17]} {[%emt
00:00:03]} 18. Re1 {[%clk 00:02:24]} {[%emt 00:00:08]} Qd6 {[%clk 00:02:15]}
{[%emt 00:00:04]} 19. Qb3 {[%clk 00:02:21]} {[%emt 00:00:05]} Rac8 {[%clk
00:02:07]} {[%emt 00:00:11]} 20. Qxb5 {[%clk 00:02:17]} {[%emt 00:00:05]} Qd8
{[%emt 00:00:12]} 1-0